[Event "Sabato rapido!"]
[Site "Chess.com"]
[Date "2020.05.02"]
[Round "6"]
[White "fausto2p"]
[Black "Piccolorso"]
[Result "0-1"]
[WhiteElo "979"]
[BlackElo "1225"]
[TimeControl "720+3"]
[EndTime "8:32:20 PDT"]
[Termination "Piccolorso ha vinto per abbandono"]

1. d4 {[%clk 0:12:02.9]} 1... Nf6 {[%clk 0:11:55.5]} 2. c4 {[%clk 0:12:03.6]}
2... e6 {[%clk 0:11:56.3]} 3. Nf3 {[%clk 0:11:57.6]} 3... b6 {[%clk 0:11:57.5]}
4. Nc3 {[%clk 0:11:52.9]} 4... Bb7 {[%clk 0:11:56]} 5. e3 {[%clk 0:11:53.1]}
5... d5 {[%clk 0:11:54.2]} 6. a3 {[%clk 0:11:43.8]} 6... Be7 {[%clk 0:11:48.3]}
7. b4 {[%clk 0:11:42.2]} 7... c5 {[%clk 0:11:39.1]} 8. bxc5 {[%clk 0:11:35.3]}
8... bxc5 {[%clk 0:11:38.7]} 9. cxd5 {[%clk 0:11:25.1]} 9... Nxd5 {[%clk
0:11:38.6]} 10. Nxd5 {[%clk 0:11:15.3]} 10... Bxd5 {[%clk 0:11:38.3]} 11. Qa4+
{[%clk 0:11:05.6]} 11... Bc6 {[%clk 0:11:25.1]} 12. Bb5 {[%clk 0:11:00.9]} 12...
Qd7 {[%clk 0:11:26]} 13. Bxc6 {[%clk 0:10:46.9]} 13... Qxc6 {[%clk 0:11:20.7]}
14. Qc2 {[%clk 0:10:06.4]} 14... O-O {[%clk 0:11:20.6]} 15. O-O {[%clk
0:10:04.9]} 15... cxd4 {[%clk 0:11:18.9]} 16. Qxc6 {[%clk 0:10:04.3]} 16... Nxc6
{[%clk 0:11:15.9]} 17. Nxd4 {[%clk 0:10:00.9]} 17... Nxd4 {[%clk 0:11:13.4]} 18.
exd4 {[%clk 0:10:01.4]} 18... Bf6 {[%clk 0:11:09.5]} 19. Be3 {[%clk 0:09:59.3]}
19... Rfd8 {[%clk 0:11:09.5]} 20. Rfd1 {[%clk 0:09:56.5]} 20... Rd7 {[%clk
0:10:44.5]} 21. Rd3 {[%clk 0:09:46.3]} 21... Rad8 {[%clk 0:10:44.3]} 22. Rad1
{[%clk 0:09:43.9]} 22... Rd5 {[%clk 0:10:21.8]} 23. g3 {[%clk 0:09:30.7]} 23...
a5 {[%clk 0:10:18.4]} 24. f4 {[%clk 0:09:00.1]} 24... h6 {[%clk 0:10:17.4]} 25.
Kg2 {[%clk 0:08:40.5]} 25... a4 {[%clk 0:10:18.3]} 26. Kf3 {[%clk 0:08:26.1]}
26... Rb5 {[%clk 0:10:19.4]} 27. Rc1 {[%clk 0:08:02.1]} 27... Rdb8 {[%clk
0:09:52.3]} 28. Rc5 {[%clk 0:07:52.3]} 28... Rb3 {[%clk 0:09:45]} 29. Rcc3
{[%clk 0:07:48.2]} 29... Rxc3 {[%clk 0:09:31.7]} 30. Rxc3 {[%clk 0:07:48.3]}
30... Rb3 {[%clk 0:09:17.6]} 31. Rc8+ {[%clk 0:06:45.6]} 31... Kh7 {[%clk
0:09:18.1]} 32. Rc4 {[%clk 0:06:36.7]} 32... Rxa3 {[%clk 0:09:16.7]} 33. Ke4
{[%clk 0:06:34.1]} 33... g5 {[%clk 0:07:36.9]} 34. Bc1 {[%clk 0:06:28.6]} 34...
Ra2 {[%clk 0:07:34.2]} 35. fxg5 {[%clk 0:06:08.5]} 35... Bxg5 {[%clk 0:06:46.6]}
36. h4 {[%clk 0:05:50.5]} 36... Bxc1 {[%clk 0:06:29.7]} 37. Rxc1 {[%clk
0:05:51.8]} 37... Kg6 {[%clk 0:06:04.2]} 38. g4 {[%clk 0:05:47.3]} 38... Rg2
{[%clk 0:05:39.1]} 39. g5 {[%clk 0:05:33.1]} 39... hxg5 {[%clk 0:05:40.2]} 40.
hxg5 {[%clk 0:05:33.6]} 40... Rxg5 {[%clk 0:05:41.8]} 41. Ra1 {[%clk 0:05:31.2]}
41... Ra5 {[%clk 0:05:25.5]} 42. Kd3 {[%clk 0:05:28.6]} 42... a3 {[%clk
0:05:21.8]} 43. Kc4 {[%clk 0:05:23.4]} 43... a2 {[%clk 0:05:22]} 44. Kb4 {[%clk
0:05:17.6]} 44... Ra7 {[%clk 0:05:13.9]} 45. Kb3 {[%clk 0:05:15.4]} 45... Kf5
{[%clk 0:05:14.5]} 46. Rxa2 {[%clk 0:05:14.4]} 46... Rxa2 {[%clk 0:05:15.7]} 47.
Kxa2 {[%clk 0:05:15.9]} 47... Ke4 {[%clk 0:05:17.5]} 48. d5 {[%clk 0:05:12.3]}
48... Kxd5 {[%clk 0:05:18.7]} 49. Kb3 {[%clk 0:05:13.4]} 49... Kd4 {[%clk
0:05:19.3]} 50. Kc2 {[%clk 0:05:14.2]} 50... e5 {[%clk 0:05:19.9]} 51. Kd2
{[%clk 0:05:15.5]} 51... f5 {[%clk 0:05:20.4]} 52. Ke2 {[%clk 0:05:16.6]} 52...
e4 {[%clk 0:05:17.8]} 53. Kd2 {[%clk 0:05:17.8]} 53... f4 {[%clk 0:05:18.7]} 54.
Ke2 {[%clk 0:05:19.3]} 54... f3+ {[%clk 0:05:06.7]} 55. Kf2 {[%clk 0:05:19.8]}
55... Kd3 {[%clk 0:05:07]} 56. Kf1 {[%clk 0:05:18.9]} 56... e3 {[%clk
0:05:04.1]} 57. Ke1 {[%clk 0:05:20.6]} 57... f2+ {[%clk 0:04:57.6]} 58. Kf1
{[%clk 0:05:22]} 58... Kd2 {[%clk 0:04:56.2]} 59. Kg2 {[%clk 0:05:19.5]} 59...
Ke1 {[%clk 0:04:55.2]} 0-1

[Event "Sabato rapido!"]
[Site "Chess.com"]
[Date "2020.05.02"]
[Round "6"]
[White "caramante"]
[Black "Mrtre7"]
[Result "1-0"]
[WhiteElo "1518"]
[BlackElo "1402"]
[TimeControl "720+3"]
[EndTime "8:32:37 PDT"]
[Termination "caramante ha vinto per abbandono"]

1. e4 {[%clk 0:12:02.9]} 1... c5 {[%clk 0:11:57.6]} 2. Nf3 {[%clk 0:12:03.7]}
2... e6 {[%clk 0:11:56.7]} 3. g3 {[%clk 0:12:05.7]} 3... Nc6 {[%clk 0:11:54.8]}
4. Bg2 {[%clk 0:12:07.6]} 4... Nf6 {[%clk 0:11:45.3]} 5. d3 {[%clk 0:12:08]}
5... d5 {[%clk 0:11:46.3]} 6. Bg5 {[%clk 0:12:02.2]} 6... dxe4 {[%clk
0:11:20.9]} 7. Bxf6 {[%clk 0:11:58.4]} 7... Qxf6 {[%clk 0:11:22.2]} 8. dxe4
{[%clk 0:11:59.8]} 8... Be7 {[%clk 0:11:21.3]} 9. c3 {[%clk 0:11:59.1]} 9... O-O
{[%clk 0:11:22.9]} 10. O-O {[%clk 0:12:00]} 10... Rd8 {[%clk 0:11:24]} 11. Qc2
{[%clk 0:12:00.8]} 11... b6 {[%clk 0:11:18.8]} 12. Re1 {[%clk 0:12:01.7]} 12...
Ba6 {[%clk 0:11:14.5]} 13. e5 {[%clk 0:11:38.1]} 13... Qh6 {[%clk 0:10:27.5]}
14. Nbd2 {[%clk 0:11:25.6]} 14... Rac8 {[%clk 0:10:13.4]} 15. Rad1 {[%clk
0:11:23.8]} 15... Bd3 {[%clk 0:10:05.9]} 16. Qa4 {[%clk 0:11:15.6]} 16... b5
{[%clk 0:09:59.6]} 17. Qg4 {[%clk 0:10:17.8]} 17... c4 {[%clk 0:07:47.8]} 18.
Bf1 {[%clk 0:09:54.2]} 18... Bc2 {[%clk 0:07:10.3]} 19. Rc1 {[%clk 0:09:51.5]}
19... Bf5 {[%clk 0:07:11.1]} 20. Qf4 {[%clk 0:09:45.7]} 20... Qxf4 {[%clk
0:06:47.4]} 21. gxf4 {[%clk 0:09:44.4]} 21... f6 {[%clk 0:06:36]} 22. Ne4 {[%clk
0:09:27.3]} 22... fxe5 {[%clk 0:06:29.5]} 23. Nxe5 {[%clk 0:09:23.9]} 23... Nxe5
{[%clk 0:06:24.7]} 24. fxe5 {[%clk 0:09:24.5]} 24... Rd5 {[%clk 0:05:24.6]} 25.
Ng3 {[%clk 0:09:19.4]} 25... Bg6 {[%clk 0:04:42.1]} 26. Bg2 {[%clk 0:09:15.7]}
26... Rd2 {[%clk 0:04:40]} 27. Re2 {[%clk 0:09:12.1]} 27... Rxe2 {[%clk
0:04:37.9]} 28. Nxe2 {[%clk 0:09:12.5]} 28... Rd8 {[%clk 0:04:19.6]} 29. Nd4
{[%clk 0:09:12.9]} 29... Bc5 {[%clk 0:03:55.3]} 30. Nxe6 {[%clk 0:09:11.4]}
30... Rc8 {[%clk 0:03:54]} 31. Bd5 {[%clk 0:09:09.8]} 31... Kh8 {[%clk
0:03:53.2]} 32. Kg2 {[%clk 0:08:52.2]} 32... Bf7 {[%clk 0:03:41.5]} 33. f4
{[%clk 0:08:48.2]} 33... Bxe6 {[%clk 0:03:27.4]} 34. Bxe6 {[%clk 0:08:48.1]}
34... Be3 {[%clk 0:03:29.3]} 35. Rf1 {[%clk 0:08:37.2]} 35... Rf8 {[%clk
0:03:29.6]} 36. f5 {[%clk 0:08:37.6]} 36... g6 {[%clk 0:03:17.1]} 37. f6 {[%clk
0:08:20.6]} 37... h5 {[%clk 0:03:17.8]} 38. Re1 {[%clk 0:08:14.9]} 38... Bf4
{[%clk 0:03:13.2]} 39. Kf3 {[%clk 0:08:14]} 39... g5 {[%clk 0:03:15]} 40. h4
{[%clk 0:08:13.7]} 40... Bd2 {[%clk 0:03:11.6]} 41. Rg1 {[%clk 0:08:06.8]} 41...
g4+ {[%clk 0:03:11.5]} 42. Ke4 {[%clk 0:08:02.8]} 42... Kh7 {[%clk 0:02:47.1]}
43. Kf5 {[%clk 0:08:03.9]} 43... Rd8 {[%clk 0:02:18.7]} 44. Bf7 {[%clk 0:07:51]}
44... Rd3 {[%clk 0:02:11.3]} 45. Bg6+ {[%clk 0:07:50.7]} 45... Kh6 {[%clk
0:01:58.5]} 46. Be8 {[%clk 0:07:44.7]} 46... Rf3+ {[%clk 0:01:57.2]} 47. Ke6
{[%clk 0:07:44.4]} 47... g3 {[%clk 0:01:52.1]} 48. f7 {[%clk 0:07:37.2]} 48...
Be3 {[%clk 0:01:45]} 49. Rxg3 {[%clk 0:07:37.1]} 49... Rxg3 {[%clk 0:01:08.2]}
50. f8=Q+ {[%clk 0:07:35.8]} 50... Rg7 {[%clk 0:01:07.5]} 51. Kf6 {[%clk
0:07:33.8]} 1-0

[Event "Sabato rapido!"]
[Site "Chess.com"]
[Date "2020.05.02"]
[Round "6"]
[White "sirmale49"]
[Black "laremaro"]
[Result "1-0"]
[WhiteElo "1415"]
[BlackElo "1661"]
[TimeControl "720+3"]
[EndTime "8:37:49 PDT"]
[Termination "sirmale49 ha vinto per abbandono"]

1. f4 {[%clk 0:12:01]} 1... g6 {[%clk 0:11:50.1]} 2. Nf3 {[%clk 0:12:01.3]} 2...
Bg7 {[%clk 0:11:52.1]} 3. g3 {[%clk 0:12:02.9]} 3... d6 {[%clk 0:11:48.9]} 4.
Bg2 {[%clk 0:12:03]} 4... c6 {[%clk 0:11:49.5]} 5. O-O {[%clk 0:12:04.4]} 5...
Qc7 {[%clk 0:11:43.8]} 6. e3 {[%clk 0:12:05.4]} 6... Nf6 {[%clk 0:11:46.2]} 7.
Nc3 {[%clk 0:12:01.7]} 7... O-O {[%clk 0:11:46.7]} 8. d3 {[%clk 0:11:56.6]} 8...
Bg4 {[%clk 0:11:39.5]} 9. h3 {[%clk 0:11:56.6]} 9... Bc8 {[%clk 0:11:40.6]} 10.
Bd2 {[%clk 0:11:53.4]} 10... Nbd7 {[%clk 0:11:42.1]} 11. d4 {[%clk 0:11:51.1]}
11... e5 {[%clk 0:11:30.9]} 12. Ng5 {[%clk 0:11:21.3]} 12... exd4 {[%clk
0:11:25.9]} 13. exd4 {[%clk 0:11:18.4]} 13... h6 {[%clk 0:11:27]} 14. Nge4
{[%clk 0:11:13.1]} 14... d5 {[%clk 0:11:20.8]} 15. Nxf6+ {[%clk 0:10:57.1]}
15... Nxf6 {[%clk 0:11:22.6]} 16. Re1 {[%clk 0:10:53.9]} 16... Bf5 {[%clk
0:11:19.6]} 17. g4 {[%clk 0:10:43.4]} 17... Bd7 {[%clk 0:11:17.9]} 18. Na4
{[%clk 0:10:18.4]} 18... Rae8 {[%clk 0:11:08.8]} 19. Nc5 {[%clk 0:10:16.7]}
19... Bc8 {[%clk 0:11:08]} 20. Qf3 {[%clk 0:10:02.5]} 20... b6 {[%clk
0:11:07.3]} 21. Nd3 {[%clk 0:09:59.6]} 21... Ne4 {[%clk 0:11:06.3]} 22. Bc3
{[%clk 0:09:45.6]} 22... c5 {[%clk 0:10:02.2]} 23. Ne5 {[%clk 0:09:35.9]} 23...
cxd4 {[%clk 0:09:43.7]} 24. Bxd4 {[%clk 0:09:10.8]} 24... Bb7 {[%clk 0:09:36.1]}
25. c3 {[%clk 0:09:08.6]} 25... Kh7 {[%clk 0:09:29.4]} 26. Qd3 {[%clk
0:08:12.7]} 26... f6 {[%clk 0:08:39.3]} 27. Nf3 {[%clk 0:07:16.3]} 27... Qxf4
{[%clk 0:08:22.6]} 28. Rf1 {[%clk 0:05:25.7]} 28... Qg3 {[%clk 0:08:12.4]} 29.
Bf2 {[%clk 0:04:45.7]} 29... Qc7 {[%clk 0:08:07.2]} 30. Rae1 {[%clk 0:04:37.5]}
30... Qc4 {[%clk 0:08:03.9]} 31. Qxc4 {[%clk 0:04:20.8]} 31... dxc4 {[%clk
0:08:05.6]} 32. Bd4 {[%clk 0:04:04.2]} 32... Kg8 {[%clk 0:07:13.2]} 33. h4
{[%clk 0:02:55.6]} 33... Ng3 {[%clk 0:06:53.1]} 34. Rxe8 {[%clk 0:02:49.4]}
34... Rxe8 {[%clk 0:06:53.3]} 35. Rf2 {[%clk 0:02:49.3]} 35... Ne2+ {[%clk
0:06:31.6]} 36. Kf1 {[%clk 0:02:43.1]} 36... Nxd4 {[%clk 0:06:22]} 37. Nxd4
{[%clk 0:02:42.7]} 37... Bxg2+ {[%clk 0:06:21.6]} 38. Kxg2 {[%clk 0:02:43.1]}
38... Re4 {[%clk 0:06:03.5]} 39. Kg3 {[%clk 0:02:35.8]} 39... a6 {[%clk
0:06:01.2]} 40. Re2 {[%clk 0:02:26.1]} 40... Rxe2 {[%clk 0:06:00]} 41. Nxe2
{[%clk 0:02:25]} 41... f5 {[%clk 0:05:52.3]} 42. gxf5 {[%clk 0:02:00.8]} 42...
gxf5 {[%clk 0:05:53.3]} 43. Kf4 {[%clk 0:02:02]} 43... Bf6 {[%clk 0:05:48.9]}
44. h5 {[%clk 0:02:01.2]} 44... Kf7 {[%clk 0:05:43.6]} 45. Kxf5 {[%clk
0:02:02.6]} 45... b5 {[%clk 0:05:35.1]} 46. Nf4 {[%clk 0:02:01.5]} 46... b4
{[%clk 0:05:29.2]} 47. Nd5 {[%clk 0:02:00]} 47... bxc3 {[%clk 0:05:27.9]} 48.
bxc3 {[%clk 0:01:57.1]} 48... Bg7 {[%clk 0:05:25.6]} 49. Nc7 {[%clk 0:01:19.5]}
49... Bxc3 {[%clk 0:05:18.3]} 50. Nxa6 {[%clk 0:01:18.9]} 50... Bd2 {[%clk
0:05:19.9]} 51. Ke4 {[%clk 0:01:13.9]} 51... Kf6 {[%clk 0:05:17.6]} 52. Kd4
{[%clk 0:01:12.5]} 52... c3 {[%clk 0:05:15.4]} 53. Kd3 {[%clk 0:01:13.1]} 53...
Kg5 {[%clk 0:05:12.4]} 54. Nc5 {[%clk 0:01:10.1]} 54... Kxh5 {[%clk 0:05:14.5]}
55. Ne4 {[%clk 0:01:10.5]} 55... Kg4 {[%clk 0:04:48.7]} 56. Nxd2 {[%clk
0:01:10.4]} 56... cxd2 {[%clk 0:04:51.1]} 57. Kxd2 {[%clk 0:01:10.5]} 57... h5
{[%clk 0:04:32.9]} 58. a4 {[%clk 0:01:07.2]} 58... h4 {[%clk 0:04:12.2]} 59. Ke2
{[%clk 0:01:02]} 1-0